[Event "*** MasterClass Titled Tuesday Blitz"]
[Site "Chess.com"]
[Date "2017.10.03"]
[Round "5"]
[White "Bengalas"]
[Black "SergeiAza"]
[Result "0-1"]
[WhiteElo "2542"]
[BlackElo "2712"]
[TimeControl "180+2"]
[EndTime "14:07:12 PDT"]
[Termination "SergeiAza won by resignation"]

1. d4 {[%clk 0:03:01.9]} 1... Nf6 {[%clk 0:02:59.7]} 2. c4 {[%clk 0:03:02.2]}
2... e6 {[%clk 0:03:00.8]} 3. Nc3 {[%clk 0:03:02.8]} 3... Bb4 {[%clk 0:03:00.9]}
4. Qc2 {[%clk 0:03:03.8]} 4... b6 {[%clk 0:03:01.6]} 5. e4 {[%clk 0:03:03.4]}
5... c5 {[%clk 0:03:00.9]} 6. d5 {[%clk 0:03:04.3]} 6... O-O {[%clk 0:02:56.7]}
7. Nf3 {[%clk 0:02:42.3]} 7... Qe7 {[%clk 0:02:53.5]} 8. Be2 {[%clk 0:02:39.9]}
8... exd5 {[%clk 0:02:50.9]} 9. exd5 {[%clk 0:02:40.1]} 9... Re8 {[%clk
0:02:45.9]} 10. h3 {[%clk 0:02:06]} 10... Bxc3+ {[%clk 0:02:36.1]} 11. bxc3
{[%clk 0:02:05.5]} 11... d6 {[%clk 0:02:36.2]} 12. Be3 {[%clk 0:02:04.6]} 12...
Nbd7 {[%clk 0:02:28.7]} 13. O-O {[%clk 0:02:03.3]} 13... Ne5 {[%clk 0:02:28.3]}
14. Nxe5 {[%clk 0:01:46.1]} 14... Qxe5 {[%clk 0:02:27.2]} 15. a4 {[%clk
0:01:45]} 15... Bf5 {[%clk 0:02:25.5]} 16. Qb3 {[%clk 0:01:39]} 16... Ne4 {[%clk
0:02:23.1]} 17. Rac1 {[%clk 0:01:30.6]} 17... Ng3 {[%clk 0:02:15.6]} 18. Rfe1
{[%clk 0:01:15]} 18... Nxe2+ {[%clk 0:02:15.7]} 19. Rxe2 {[%clk 0:01:16]} 19...
Bd3 {[%clk 0:02:17]} 20. Rd2 {[%clk 0:01:14]} 20... Qe4 {[%clk 0:02:16.7]} 21.
Bg5 {[%clk 0:00:47.4]} 21... Bxc4 {[%clk 0:02:02]} 22. Qd1 {[%clk 0:00:47]}
22... h6 {[%clk 0:02:00.8]} 23. f3 {[%clk 0:00:36.4]} 23... Qf5 {[%clk
0:01:51.6]} 24. Bh4 {[%clk 0:00:36.8]} 24... Qf4 {[%clk 0:01:45.6]} 25. Bf2
{[%clk 0:00:34]} 25... Re7 {[%clk 0:01:44]} 26. a5 {[%clk 0:00:30.1]} 26... b5
{[%clk 0:01:43.5]} 27. a6 {[%clk 0:00:28.8]} 27... Rae8 {[%clk 0:01:43]} 28. Qc2
{[%clk 0:00:24.6]} 28... h5 {[%clk 0:01:36.3]} 29. Rcd1 {[%clk 0:00:23.8]} 29...
h4 {[%clk 0:01:35.1]} 30. Qb2 {[%clk 0:00:22.4]} 30... f6 {[%clk 0:01:28.4]} 31.
Qa3 {[%clk 0:00:21.2]} 31... Re5 {[%clk 0:01:12.8]} 32. Qb2 {[%clk 0:00:21.5]}
32... Rg5 {[%clk 0:01:13.2]} 33. Kh1 {[%clk 0:00:22.6]} 33... Ree5 {[%clk
0:01:08.6]} 34. Bg1 {[%clk 0:00:22.1]} 34... Rg3 {[%clk 0:00:53.7]} 35. Bh2
{[%clk 0:00:22.8]} 35... Re3 {[%clk 0:00:52]} 36. Bxg3 {[%clk 0:00:20.6]} 36...
hxg3 {[%clk 0:00:52.6]} 37. Qc1 {[%clk 0:00:21.3]} 37... Qe5 {[%clk 0:00:52.4]}
38. Rg1 {[%clk 0:00:21.1]} 38... Qxc3 {[%clk 0:00:49.2]} 39. Qd1 {[%clk
0:00:20.3]} 39... Qe5 {[%clk 0:00:48.5]} 40. Qc1 {[%clk 0:00:20.4]} 40... f5
{[%clk 0:00:41.9]} 41. Rdd1 {[%clk 0:00:19.9]} 41... f4 {[%clk 0:00:40]} 42.
Rge1 {[%clk 0:00:20.7]} 42... Be2 {[%clk 0:00:37]} 43. Rd2 {[%clk 0:00:21.1]}
43... Bxf3 {[%clk 0:00:32.4]} 44. Rxe3 {[%clk 0:00:22.1]} 44... fxe3 {[%clk
0:00:32.9]} 45. Rd3 {[%clk 0:00:22.1]} 45... e2 {[%clk 0:00:27.7]} 46. Re3
{[%clk 0:00:23.2]} 46... Qxd5 {[%clk 0:00:23.3]} 47. gxf3 {[%clk 0:00:23]} 47...
Qd1+ {[%clk 0:00:23.9]} 0-1

[Event "*** MasterClass Titled Tuesday Blitz"]
[Site "Chess.com"]
[Date "2017.10.03"]
[Round "5"]
[White "Noukii"]
[Black "grzechu96"]
[Result "1-0"]
[WhiteElo "2686"]
[BlackElo "2421"]
[TimeControl "180+2"]
[EndTime "14:07:26 PDT"]
[Termination "Noukii won by resignation"]

1. d4 {[%clk 0:03:00.1]} 1... Nf6 {[%clk 0:02:57.6]} 2. Nf3 {[%clk 0:03:00.8]}
2... g6 {[%clk 0:02:58.4]} 3. Bg5 {[%clk 0:03:00.2]} 3... Bg7 {[%clk 0:02:59.5]}
4. c3 {[%clk 0:02:59.1]} 4... d5 {[%clk 0:03:00.7]} 5. Nbd2 {[%clk 0:02:59.9]}
5... c5 {[%clk 0:03:02]} 6. e3 {[%clk 0:03:00.6]} 6... Nc6 {[%clk 0:03:03.2]} 7.
Be2 {[%clk 0:02:58.1]} 7... O-O {[%clk 0:03:03]} 8. O-O {[%clk 0:02:59.7]} 8...
b6 {[%clk 0:03:03.3]} 9. Nb3 {[%clk 0:02:50.4]} 9... Ne4 {[%clk 0:03:02.8]} 10.
Bh4 {[%clk 0:02:37.1]} 10... h6 {[%clk 0:03:03]} 11. Nfd2 {[%clk 0:02:37.2]}
11... Nxd2 {[%clk 0:02:52.7]} 12. Qxd2 {[%clk 0:02:38.3]} 12... c4 {[%clk
0:02:49.6]} 13. Nc1 {[%clk 0:02:39.8]} 13... Bf5 {[%clk 0:02:50.4]} 14. Bf3
{[%clk 0:02:34.6]} 14... Qd7 {[%clk 0:02:50]} 15. Bg3 {[%clk 0:02:31.2]} 15...
Rad8 {[%clk 0:02:49.5]} 16. b3 {[%clk 0:02:25.4]} 16... Na5 {[%clk 0:02:38.9]}
17. b4 {[%clk 0:02:21.8]} 17... Nc6 {[%clk 0:02:39.9]} 18. a4 {[%clk 0:02:23.3]}
18... a5 {[%clk 0:02:25.2]} 19. b5 {[%clk 0:02:24.1]} 19... Na7 {[%clk
0:02:25.2]} 20. Re1 {[%clk 0:02:22]} 20... Nc8 {[%clk 0:02:17.4]} 21. Ne2 {[%clk
0:02:16.1]} 21... Bg4 {[%clk 0:01:59.2]} 22. Bxg4 {[%clk 0:02:09.7]} 22... Qxg4
{[%clk 0:02:01.1]} 23. Nf4 {[%clk 0:02:06.8]} 23... e6 {[%clk 0:01:37.1]} 24. f3
{[%clk 0:01:55.3]} 24... Qg5 {[%clk 0:01:38]} 25. Rad1 {[%clk 0:01:51.3]} 25...
Ne7 {[%clk 0:01:28.8]} 26. Qf2 {[%clk 0:01:49.2]} 26... Nf5 {[%clk 0:01:29.6]}
27. e4 {[%clk 0:01:40.6]} 27... Nxg3 {[%clk 0:01:27]} 28. Qxg3 {[%clk
0:01:28.7]} 28... dxe4 {[%clk 0:01:24.1]} 29. fxe4 {[%clk 0:01:28.8]} 29... Qxg3
{[%clk 0:01:20.7]} 30. hxg3 {[%clk 0:01:29.4]} 30... e5 {[%clk 0:00:48.7]} 31.
Nd5 {[%clk 0:01:16.7]} 31... exd4 {[%clk 0:00:48.8]} 32. cxd4 {[%clk 0:01:16.3]}
32... f5 {[%clk 0:00:50.4]} 33. Ne7+ {[%clk 0:01:12.1]} 33... Kf7 {[%clk
0:00:45.7]} 34. Nc6 {[%clk 0:01:13.1]} 34... Rd7 {[%clk 0:00:40.7]} 35. e5
{[%clk 0:01:07.8]} 35... Ke6 {[%clk 0:00:41.5]} 36. Kf2 {[%clk 0:00:58.2]} 36...
Rc8 {[%clk 0:00:31]} 37. Ke3 {[%clk 0:00:59.2]} 37... Kd5 {[%clk 0:00:31.2]} 38.
Kd2 {[%clk 0:00:49.8]} 38... h5 {[%clk 0:00:23.9]} 39. Kc3 {[%clk 0:00:50.9]}
39... Rdc7 {[%clk 0:00:17.6]} 40. e6 {[%clk 0:00:41.9]} 40... Re8 {[%clk
0:00:18.7]} 41. e7 {[%clk 0:00:22.7]} 41... Bf6 {[%clk 0:00:20]} 42. Re2 {[%clk
0:00:24.2]} 42... Bxe7 {[%clk 0:00:19.2]} 43. Re5+ {[%clk 0:00:24.1]} 43... Kd6
{[%clk 0:00:18.9]} 44. Rde1 {[%clk 0:00:25]} 44... g5 {[%clk 0:00:03.9]} 45.
Re6+ {[%clk 0:00:25.8]} 1-0

[Event "*** MasterClass Titled Tuesday Blitz"]
[Site "Chess.com"]
[Date "2017.10.03"]
[Round "5"]
[White "Mbneu"]
[Black "saraswathii"]
[Result "1-0"]
[WhiteElo "2208"]
[BlackElo "2289"]
[TimeControl "180+2"]
[EndTime "14:07:31 PDT"]
[Termination "Mbneu won by checkmate"]

1. d4 {[%clk 0:03:01.9]} 1... Nc6 {[%clk 0:02:53.1]} 2. c4 {[%clk 0:02:54.7]}
2... e5 {[%clk 0:02:53.3]} 3. e3 {[%clk 0:02:52]} 3... Nf6 {[%clk 0:02:50.8]} 4.
Nf3 {[%clk 0:02:49.5]} 4... exd4 {[%clk 0:02:48.9]} 5. exd4 {[%clk 0:02:49.9]}
5... d5 {[%clk 0:02:49.9]} 6. Nc3 {[%clk 0:02:39.8]} 6... Be6 {[%clk 0:02:49.8]}
7. c5 {[%clk 0:02:38.8]} 7... a6 {[%clk 0:02:41.8]} 8. Bd3 {[%clk 0:02:36.3]}
8... Be7 {[%clk 0:02:41.1]} 9. O-O {[%clk 0:02:33.5]} 9... O-O {[%clk
0:02:38.8]} 10. h3 {[%clk 0:02:31.4]} 10... Qd7 {[%clk 0:02:36.7]} 11. Re1
{[%clk 0:02:14.3]} 11... Rfe8 {[%clk 0:02:29.8]} 12. Ne5 {[%clk 0:02:10.8]}
12... Qc8 {[%clk 0:02:20.6]} 13. Nxc6 {[%clk 0:02:07.6]} 13... bxc6 {[%clk
0:02:22.5]} 14. Bf4 {[%clk 0:02:03.1]} 14... Bf5 {[%clk 0:02:03.7]} 15. b3
{[%clk 0:01:54.2]} 15... Bxd3 {[%clk 0:01:58]} 16. Qxd3 {[%clk 0:01:54.2]} 16...
Nh5 {[%clk 0:01:52.1]} 17. Bh2 {[%clk 0:01:49.1]} 17... Bg5 {[%clk 0:01:35.6]}
18. Rxe8+ {[%clk 0:01:35.5]} 18... Qxe8 {[%clk 0:01:35.6]} 19. Bxc7 {[%clk
0:01:36.9]} 19... Qe7 {[%clk 0:01:29]} 20. Bd6 {[%clk 0:01:36.8]} 20... Qe6
{[%clk 0:01:24.4]} 21. Qe2 {[%clk 0:01:15]} 21... Qg6 {[%clk 0:01:22.2]} 22. Re1
{[%clk 0:01:09.1]} 22... h6 {[%clk 0:01:18.7]} 23. Qf3 {[%clk 0:01:05.7]} 23...
Nf6 {[%clk 0:01:12.2]} 24. g3 {[%clk 0:01:00.6]} 24... Qc2 {[%clk 0:01:05.6]}
25. Re2 {[%clk 0:00:57.6]} 25... Qc1+ {[%clk 0:00:59.3]} 26. Kg2 {[%clk
0:00:58.1]} 26... Bd2 {[%clk 0:00:58]} 27. Na4 {[%clk 0:00:51]} 27... Ne4 {[%clk
0:00:57.2]} 28. Rxe4 {[%clk 0:00:41.5]} 28... dxe4 {[%clk 0:00:56.5]} 29. Qxe4
{[%clk 0:00:43]} 29... Rc8 {[%clk 0:00:48.2]} 30. Nb6 {[%clk 0:00:42]} 30... Rd8
{[%clk 0:00:43.8]} 31. Qxc6 {[%clk 0:00:34.8]} 31... Be1 {[%clk 0:00:37.6]} 32.
Qf3 {[%clk 0:00:26.8]} 32... Qc2 {[%clk 0:00:25.6]} 33. Nd5 {[%clk 0:00:21.4]}
33... f6 {[%clk 0:00:19]} 34. Ne7+ {[%clk 0:00:20.9]} 34... Kf7 {[%clk
0:00:18.4]} 35. Qd5+ {[%clk 0:00:20.5]} 35... Ke8 {[%clk 0:00:19.3]} 36. Qc6+
{[%clk 0:00:21]} 36... Rd7 {[%clk 0:00:17.3]} 37. Qa8+ {[%clk 0:00:19.4]} 37...
Rd8 {[%clk 0:00:18.2]} 38. Qc6+ {[%clk 0:00:19.8]} 38... Rd7 {[%clk 0:00:19.3]}
39. Qa8+ {[%clk 0:00:19.6]} 39... Rd8 {[%clk 0:00:20.4]} 40. Qf3 {[%clk
0:00:20.3]} 40... Qxa2 {[%clk 0:00:19.2]} 41. Nc6 {[%clk 0:00:18.3]} 41... Rd7
{[%clk 0:00:19.4]} 42. Qe4+ {[%clk 0:00:18.5]} 42... Kf7 {[%clk 0:00:19.4]} 43.
Qxe1 {[%clk 0:00:18.6]} 43... Qxb3 {[%clk 0:00:18.7]} 44. Qe4 {[%clk 0:00:18]}
44... Qb5 {[%clk 0:00:16.4]} 45. Qd5+ {[%clk 0:00:14.8]} 45... Kg6 {[%clk
0:00:17.3]} 46. Ne7+ {[%clk 0:00:14.6]} 46... Kh7 {[%clk 0:00:15.2]} 47. Qg8#
{[%clk 0:00:14.3]} 1-0

[Event "*** MasterClass Titled Tuesday Blitz"]
[Site "Chess.com"]
[Date "2017.10.03"]
[Round "5"]
[White "Cruel_Yaro"]
[Black "Kacparov"]
[Result "1/2-1/2"]
[WhiteElo "2695"]
[BlackElo "2626"]
[TimeControl "180+2"]
[EndTime "14:07:34 PDT"]
[Termination "Game drawn by agreement"]

1. a3 {[%clk 0:03:01.9]} 1... g6 {[%clk 0:03:00.1]} 2. e4 {[%clk 0:03:02.3]}
2... Bg7 {[%clk 0:03:01.1]} 3. d4 {[%clk 0:03:03.6]} 3... d6 {[%clk 0:03:00.1]}
4. Nc3 {[%clk 0:03:04.7]} 4... Nd7 {[%clk 0:02:58.6]} 5. Be3 {[%clk 0:03:05]}
5... c6 {[%clk 0:02:51.3]} 6. Qd2 {[%clk 0:03:05.3]} 6... Ngf6 {[%clk
0:02:45.5]} 7. f3 {[%clk 0:03:03.5]} 7... O-O {[%clk 0:02:45.9]} 8. Nh3 {[%clk
0:03:01.1]} 8... b5 {[%clk 0:02:42.3]} 9. Nf2 {[%clk 0:03:00]} 9... Nb6 {[%clk
0:02:43.2]} 10. Be2 {[%clk 0:02:57]} 10... a5 {[%clk 0:02:43.2]} 11. O-O {[%clk
0:02:52.3]} 11... Ba6 {[%clk 0:02:40.7]} 12. b4 {[%clk 0:02:44.3]} 12... axb4
{[%clk 0:02:34.5]} 13. axb4 {[%clk 0:02:44.1]} 13... Bb7 {[%clk 0:02:34.1]} 14.
Bh6 {[%clk 0:02:44.9]} 14... Rxa1 {[%clk 0:02:33.6]} 15. Rxa1 {[%clk 0:02:45.2]}
15... e5 {[%clk 0:02:31.9]} 16. Bxg7 {[%clk 0:02:42.3]} 16... Kxg7 {[%clk
0:02:33.8]} 17. dxe5 {[%clk 0:02:39.6]} 17... dxe5 {[%clk 0:02:34.4]} 18. Qxd8
{[%clk 0:02:35.7]} 18... Rxd8 {[%clk 0:02:34.8]} 19. Nd3 {[%clk 0:02:34.7]}
19... Nfd7 {[%clk 0:02:34.3]} 20. Ra7 {[%clk 0:02:34.4]} 20... Rb8 {[%clk
0:02:34.9]} 21. Nd1 {[%clk 0:02:22.1]} 21... Kf8 {[%clk 0:02:26.8]} 22. Ne3
{[%clk 0:02:20.2]} 22... Ke7 {[%clk 0:02:27.6]} 23. Nb2 {[%clk 0:02:01.8]} 23...
Nc8 {[%clk 0:02:19]} 24. Ra3 {[%clk 0:01:55.6]} 24... Nd6 {[%clk 0:02:16.6]} 25.
c4 {[%clk 0:01:55.2]} 25... bxc4 {[%clk 0:02:17.4]} 26. Nbxc4 {[%clk 0:01:56.3]}
26... Nb5 {[%clk 0:02:15.4]} 27. Ra2 {[%clk 0:01:51.8]} 27... Nd4 {[%clk
0:02:14.7]} 28. Bf1 {[%clk 0:01:43.9]} 28... Bc8 {[%clk 0:01:58.2]} 29. Ra4
{[%clk 0:01:43.7]} 29... f6 {[%clk 0:01:57.1]} 30. Kf2 {[%clk 0:01:43.3]} 30...
Nb6 {[%clk 0:01:44]} 31. Ra7+ {[%clk 0:01:34.3]} 31... Bd7 {[%clk 0:01:43]} 32.
Na5 {[%clk 0:01:10.5]} 32... Nc8 {[%clk 0:01:38.6]} 33. Rb7 {[%clk 0:01:11.6]}
33... Rxb7 {[%clk 0:01:39.5]} 34. Nxb7 {[%clk 0:01:12.6]} 34... Nd6 {[%clk
0:01:34]} 35. Nc5 {[%clk 0:01:11.6]} 35... Be6 {[%clk 0:01:31.5]} 36. Ke1 {[%clk
0:01:09.3]} 36... f5 {[%clk 0:01:24.7]} 37. Kd2 {[%clk 0:01:06.6]} 37... fxe4
{[%clk 0:01:23.9]} 38. fxe4 {[%clk 0:01:06.6]} 38... Nb3+ {[%clk 0:01:11.7]} 39.
Nxb3 {[%clk 0:01:03.4]} 39... Bxb3 {[%clk 0:01:13.6]} 40. Bd3 {[%clk 0:01:02.9]}
40... Ba4 {[%clk 0:01:04.7]} 41. Ng4 {[%clk 0:00:59.9]} 41... Ke6 {[%clk
0:01:02.6]} 42. Ke3 {[%clk 0:00:54.7]} 42... Bb5 {[%clk 0:01:02.7]} 43. h4
{[%clk 0:00:53.2]} 43... Bxd3 {[%clk 0:00:59]} 44. Kxd3 {[%clk 0:00:54.2]} 44...
Nb5 {[%clk 0:00:53.9]} 45. Kc4 {[%clk 0:00:49]} 45... h5 {[%clk 0:00:51.1]} 46.
Nf2 {[%clk 0:00:39.3]} 46... Kd6 {[%clk 0:00:50.2]} 47. Nh3 {[%clk 0:00:36.5]}
47... Na3+ {[%clk 0:00:50.5]} 48. Kd3 {[%clk 0:00:36.6]} 48... c5 {[%clk
0:00:49.2]} 49. bxc5+ {[%clk 0:00:31.5]} 49... Kxc5 {[%clk 0:00:49.4]} 50. Ng5
{[%clk 0:00:33]} 50... Kd6 {[%clk 0:00:45.1]} 51. Kc3 {[%clk 0:00:17.9]} 51...
Nb5+ {[%clk 0:00:45.8]} 52. Kc4 {[%clk 0:00:18.8]} 52... Nd4 {[%clk 0:00:46.3]}
53. Kd3 {[%clk 0:00:17.3]} 53... Nc6 {[%clk 0:00:39.7]} 54. Kc4 {[%clk
0:00:17.2]} 54... Nd4 {[%clk 0:00:39.7]} 55. Kd3 {[%clk 0:00:16.4]} 55... Nc6
{[%clk 0:00:40.8]} 1/2-1/2

[Event "*** MasterClass Titled Tuesday Blitz"]
[Site "Chess.com"]
[Date "2017.10.03"]
[Round "5"]
[White "chito89"]
[Black "Andrjywa"]
[Result "1/2-1/2"]
[WhiteElo "2570"]
[BlackElo "2346"]
[TimeControl "180+2"]
[EndTime "14:07:34 PDT"]
[Termination "Game drawn by agreement"]

1. e4 {[%clk 0:03:01.9]} 1... c5 {[%clk 0:03:00.6]} 2. Nf3 {[%clk 0:03:01.8]}
2... Nc6 {[%clk 0:03:02.1]} 3. Bb5 {[%clk 0:03:00.5]} 3... e6 {[%clk 0:03:02.8]}
4. O-O {[%clk 0:03:00.9]} 4... Nge7 {[%clk 0:03:03.2]} 5. b3 {[%clk 0:03:00.9]}
5... a6 {[%clk 0:03:04.6]} 6. Bxc6 {[%clk 0:03:01.9]} 6... Nxc6 {[%clk
0:03:06.1]} 7. Bb2 {[%clk 0:03:03.5]} 7... b5 {[%clk 0:03:03]} 8. d4 {[%clk
0:03:01.5]} 8... cxd4 {[%clk 0:03:03.7]} 9. Nxd4 {[%clk 0:03:02.6]} 9... Bb7
{[%clk 0:03:05.2]} 10. Nxc6 {[%clk 0:02:59.4]} 10... Bxc6 {[%clk 0:03:04.9]} 11.
Nd2 {[%clk 0:03:01]} 11... Qg5 {[%clk 0:02:58.4]} 12. f4 {[%clk 0:02:58.6]}
12... Qg6 {[%clk 0:02:57.9]} 13. Qe2 {[%clk 0:02:50.7]} 13... Bc5+ {[%clk
0:02:58.1]} 14. Kh1 {[%clk 0:02:51.1]} 14... O-O {[%clk 0:02:59.5]} 15. Rae1
{[%clk 0:02:45.2]} 15... f5 {[%clk 0:02:58.7]} 16. e5 {[%clk 0:02:40.7]} 16...
a5 {[%clk 0:02:31.6]} 17. a3 {[%clk 0:02:36.6]} 17... Be3 {[%clk 0:02:19]} 18.
Bc1 {[%clk 0:02:00.7]} 18... Bxd2 {[%clk 0:02:10.3]} 19. Bxd2 {[%clk 0:02:01.5]}
19... a4 {[%clk 0:02:11.2]} 20. b4 {[%clk 0:01:51.5]} 20... Rfc8 {[%clk
0:02:04]} 21. Qf2 {[%clk 0:01:43]} 21... Be4 {[%clk 0:02:01.2]} 22. c3 {[%clk
0:01:44.3]} 22... Rc4 {[%clk 0:01:53.1]} 23. Re3 {[%clk 0:01:45.8]} 23... Rac8
{[%clk 0:01:29.1]} 24. h3 {[%clk 0:01:46.9]} 24... Qh5 {[%clk 0:01:16.1]} 25.
Kh2 {[%clk 0:01:46.3]} 25... Bd5 {[%clk 0:01:02.7]} 26. Rfe1 {[%clk 0:01:42.9]}
26... Re4 {[%clk 0:01:02.5]} 27. Rxe4 {[%clk 0:01:42.6]} 27... Bxe4 {[%clk
0:01:03.8]} 28. Re3 {[%clk 0:01:43.2]} 28... Bd5 {[%clk 0:01:04.5]} 29. Rg3
{[%clk 0:01:41.7]} 29... Qd1 {[%clk 0:01:01.7]} 30. Qa7 {[%clk 0:01:37.4]} 30...
Bc6 {[%clk 0:00:49.7]} 31. Qc5 {[%clk 0:01:27.1]} 31... Re8 {[%clk 0:00:48.4]}
32. Be3 {[%clk 0:01:11.2]} 32... Qb3 {[%clk 0:00:46.5]} 33. Bd4 {[%clk
0:01:10.6]} 33... Qxa3 {[%clk 0:00:47]} 34. c4 {[%clk 0:01:10.2]} 34... Qc1
{[%clk 0:00:44.6]} 35. Bc3 {[%clk 0:01:02.7]} 35... Qxf4 {[%clk 0:00:39.5]} 36.
cxb5 {[%clk 0:01:01.3]} 36... Bd5 {[%clk 0:00:33.2]} 37. Qc7 {[%clk 0:01:01.6]}
37... Kf7 {[%clk 0:00:24.6]} 38. b6 {[%clk 0:00:48.4]} 38... h5 {[%clk
0:00:25.6]} 39. Bd2 {[%clk 0:00:32.5]} 39... Qxd2 {[%clk 0:00:21.6]} 40. Qxd7+
{[%clk 0:00:31.9]} 40... Re7 {[%clk 0:00:22]} 41. Rxg7+ {[%clk 0:00:33.1]} 41...
Kxg7 {[%clk 0:00:23.4]} 42. Qxe7+ {[%clk 0:00:32.6]} 42... Kh6 {[%clk
0:00:20.7]} 43. Qf6+ {[%clk 0:00:32.6]} 43... Kh7 {[%clk 0:00:17.9]} 44. Qf7+
{[%clk 0:00:34.1]} 44... Kh6 {[%clk 0:00:18]} 45. Qf6+ {[%clk 0:00:34.8]} 45...
Kh7 {[%clk 0:00:19.2]} 46. Qf7+ {[%clk 0:00:35]} 46... Kh6 {[%clk 0:00:20]} 47.
Qf8+ {[%clk 0:00:30]} 47... Kh7 {[%clk 0:00:20.6]} 1/2-1/2

[Event "*** MasterClass Titled Tuesday Blitz"]
[Site "Chess.com"]
[Date "2017.10.03"]
[Round "5"]
[White "bilelou"]
[Black "chessking2151"]
[Result "0-1"]
[WhiteElo "2411"]
[BlackElo "2378"]
[TimeControl "180+2"]
[EndTime "14:07:52 PDT"]
[Termination "chessking2151 won by resignation"]

1. e4 {[%clk 0:02:58.1]} 1... e5 {[%clk 0:03:01.1]} 2. Nf3 {[%clk 0:02:51.8]}
2... Nc6 {[%clk 0:03:01.9]} 3. Bb5 {[%clk 0:02:46.4]} 3... a6 {[%clk 0:02:59.1]}
4. Ba4 {[%clk 0:02:44.7]} 4... Nf6 {[%clk 0:02:59.3]} 5. d3 {[%clk 0:02:45.4]}
5... b5 {[%clk 0:02:59.1]} 6. Bb3 {[%clk 0:02:46]} 6... Bc5 {[%clk 0:02:59.5]}
7. O-O {[%clk 0:02:44.2]} 7... O-O {[%clk 0:02:56.1]} 8. h3 {[%clk 0:02:34.2]}
8... d6 {[%clk 0:02:55.8]} 9. a3 {[%clk 0:02:01.4]} 9... h6 {[%clk 0:02:54.2]}
10. Nc3 {[%clk 0:01:58.8]} 10... Nd4 {[%clk 0:02:48.1]} 11. Nxd4 {[%clk
0:01:48.3]} 11... Bxd4 {[%clk 0:02:50]} 12. Be3 {[%clk 0:01:48.3]} 12... Bxc3
{[%clk 0:02:28.7]} 13. bxc3 {[%clk 0:01:47.7]} 13... c5 {[%clk 0:02:29.7]} 14.
f4 {[%clk 0:01:46.3]} 14... Qe7 {[%clk 0:02:17.4]} 15. f5 {[%clk 0:01:35.8]}
15... Bb7 {[%clk 0:02:14.7]} 16. g4 {[%clk 0:01:34.7]} 16... c4 {[%clk
0:02:14.1]} 17. Ba2 {[%clk 0:01:33.8]} 17... Nd7 {[%clk 0:02:02.6]} 18. dxc4
{[%clk 0:01:06.2]} 18... Bxe4 {[%clk 0:01:51.8]} 19. cxb5 {[%clk 0:01:04.3]}
19... axb5 {[%clk 0:01:51.2]} 20. c4 {[%clk 0:01:05.3]} 20... Rxa3 {[%clk
0:01:43.3]} 21. Re1 {[%clk 0:01:01.1]} 21... Rfa8 {[%clk 0:01:23.4]} 22. Bf2
{[%clk 0:00:52]} 22... Bf3 {[%clk 0:00:50.7]} 23. Qb1 {[%clk 0:00:44]} 23...
bxc4 {[%clk 0:00:51.8]} 24. Qb2 {[%clk 0:00:43.7]} 24... c3 {[%clk 0:00:33.2]}
25. Qb1 {[%clk 0:00:34.9]} 25... Nf6 {[%clk 0:00:20.7]} 26. Re3 {[%clk
0:00:23.3]} 26... Bd5 {[%clk 0:00:20.4]} 27. Qb4 {[%clk 0:00:18.1]} 27... Rxa2
{[%clk 0:00:18.8]} 28. Rxa2 {[%clk 0:00:19.7]} 28... Bxa2 {[%clk 0:00:20.1]} 29.
Rd3 {[%clk 0:00:15.5]} 29... e4 {[%clk 0:00:17.3]} 30. Qxd6 {[%clk 0:00:11.5]}
30... Qxd6 {[%clk 0:00:07.7]} 31. Rxd6 {[%clk 0:00:13.4]} 31... Bc4 {[%clk
0:00:08.4]} 32. Bd4 {[%clk 0:00:07.6]} 32... Nd5 {[%clk 0:00:07.7]} 33. h4
{[%clk 0:00:05.7]} 33... f6 {[%clk 0:00:07.5]} 34. g5 {[%clk 0:00:07.4]} 34...
hxg5 {[%clk 0:00:08.7]} 35. hxg5 {[%clk 0:00:09.3]} 35... fxg5 {[%clk
0:00:10.3]} 36. Rg6 {[%clk 0:00:08.9]} 36... Nf4 {[%clk 0:00:10.9]} 37. Rxg7+
{[%clk 0:00:09.4]} 37... Kf8 {[%clk 0:00:12.3]} 38. Be5 {[%clk 0:00:10.1]} 38...
Ra1+ {[%clk 0:00:09.5]} 39. Kf2 {[%clk 0:00:10.8]} 39... Rc1 {[%clk 0:00:10.4]}
40. Ke3 {[%clk 0:00:11.9]} 40... Rxc2 {[%clk 0:00:08.8]} 41. f6 {[%clk
0:00:13.4]} 41... Re2+ {[%clk 0:00:09]} 42. Kd4 {[%clk 0:00:14.6]} 42... Ne6+
{[%clk 0:00:10.3]} 43. Kxc4 {[%clk 0:00:14.7]} 43... Nxg7 {[%clk 0:00:11.6]} 44.
fxg7+ {[%clk 0:00:16.2]} 44... Kg8 {[%clk 0:00:13.2]} 45. Kxc3 {[%clk
0:00:17.8]} 45... Rf2 {[%clk 0:00:12.4]} 46. Kd4 {[%clk 0:00:19.2]} 46... Re2
{[%clk 0:00:13]} 47. Kd5 {[%clk 0:00:19.1]} 47... g4 {[%clk 0:00:14.2]} 48. Kd4
{[%clk 0:00:20.4]} 48... Re1 {[%clk 0:00:14.1]} 49. Kd5 {[%clk 0:00:20.9]} 49...
e3 {[%clk 0:00:15.2]} 50. Kd4 {[%clk 0:00:22.5]} 50... e2 {[%clk 0:00:08.8]} 51.
Kd3 {[%clk 0:00:23.7]} 51... g3 {[%clk 0:00:10.4]} 52. Kd2 {[%clk 0:00:21.5]}
52... g2 {[%clk 0:00:06.5]} 0-1